Cogmind - Beta 13 @@@ ROGUE MODE // 2024.04.15 @ 10:11:17 Player: m1m1c Result: Destroyed by H-61 Shepherd with Heavy Assault Cannon Performance ------------- Evolutions (4) 2000 Regions Visited (7) 1400 Robots Destroyed (19) 95 Value Destroyed (495) 495 Prototype IDs (1) 20 Alien Tech Used (0) 0 Bonus (507) 507 TOTAL SCORE: 4517 Bonus ------- Follower Combat Kills 7 Entered DSFs 500 Cogmind --------- Core Integrity 0/850 Matter 17/300 Energy 99/100 System Corruption 0% Temperature Cool (0) Movement Core (100) Ox1 Location -6/DSF Parts ------- > --- POWER (2) -------- (None) > --- PROPULSION (5) --- (None) > --- UTILITY (6) ------ Weight Redist. System Improved Utility Shielding Improved Utility Shielding > --- WEAPON (2) ------- (None) > --- INVENTORY (5) ---- Light Nuclear Core Nuclear Pulse Thruster Advanced ECM Suite Proton Missile Launcher Rocket Launcher Peak State ------------ > --- POWER ------------ Light Ion Engine > --- PROPULSION ------- VTOL Module Improved Flight Unit > --- UTILITY ---------- Small Storage Unit Improved Utility Shielding Improved Utility Shielding > --- WEAPON ----------- Light Assault Rifle > --- INVENTORY -------- Hover Unit Hover Unit Hover Unit Grenade Launcher Rocket Launcher Rocket Launcher [Rating: 14] Favorites ----------- Power Ion Engine Engine Ion Engine Power Core Light Nuclear Core Propulsion Hover Unit Leg Aluminum Leg Hover Unit Hover Unit Flight Unit Improved Flight Unit Utility Improved Utility Shielding Device Weight Redist. System Storage Small Storage Unit Protection Improved Utility Shielding Weapon Assault Rifle Energy Gun Medium Laser Ballistic Gun Assault Rifle Launcher Grenade Launcher Build | -11 -10 -10 -9 -8 -7 -6 -6 ------- Run | Yrd Mat Min Mat Mat Fac Fac DSF Slots Evolved 8 | . . . 2 2 2 2 . Power 1 | . . . . . . 1 . Propulsion 3 | . . . 2 . 1 . . Utility 4 | . . . . 2 1 1 . Weapon . | . . . . . . . . Parts Attached 37 | 7 9 1 5 11 2 1 1 Power 4 | 1 1 . . 2 . . . Engine 3 | 1 1 . . 1 . . . Core 1 | . . . . 1 . . . Reactor . | . . . . . . . . Propulsion 17 | 2 5 . 5 3 . 1 1 Treads . | . . . . . . . . Leg 3 | 2 1 . . . . . . Wheel . | . . . . . . . . Hover 7 | . 4 . . 3 . . . Flight 7 | . . . 5 . . 1 1 Utility 6 | 1 1 . . 2 2 . . Device 2 | . . . . . 2 . . Storage 1 | 1 . . . . . . . Processor . | . . . . . . . . Hackware . | . . . . . . . . Protection 3 | . 1 . . 2 . . . Artifact . | . . . . . . . . Weapon 10 | 3 2 1 . 4 . . . Energy Gun 1 | 1 . . . . . . . Energy Cannon . | . . . . . . . . Ballistic Gun 4 | 2 . 1 . 1 . . . Ballistic Cannon . | . . . . . . . . Launcher 5 | . 2 . . 3 . . . Special Weapon . | . . . . . . . . Impact Weapon . | . . . . . . . . Slashing Weapon . | . . . . . . . . Piercing Weapon . | . . . . . . . . Special Melee Weapon . | . . . . . . . . Unidentified Prototypes 1 | . . . 1 . . . . Parts Lost 23 | . 6 . 4 9 2 . 2 Power 4 | . 1 . 1 1 1 . . Propulsion 12 | . 2 . 3 5 . . 2 Utility 2 | . 1 . . . 1 . . Weapon 5 | . 2 . . 3 . . . Highest Loss Streak 6 | . 6 . 4 5 2 . 2 To Critical Strikes . | . . . . . . . . Average Slot Usage (%) 56 | . 96 67 53 35 35 24 21 Engine 6 | . 14 14 7 1 . . . Leg 4 | . 14 . . . . . . Hover 7 | . 12 28 2 4 . . . Flight 7 | . . . 25 11 . 4 1 Device 2 | . . . . . 13 6 6 Storage 7 | . 14 14 11 4 . . . Protection 9 | . 12 . . 10 15 13 13 Ballistic Gun 5 | . 12 10 6 1 . . . Launcher 4 | . 13 . . . . . . Naked Turns . | . . . . . . . . Heaviest Build 18 | 14 18 11 11 13 11 4 4 Greatest Support 20 | 20 20 12 12 12 9 5 6 Greatest Overweight (x) 4 | 4 4 . 1 2 1 1 1 Average Overweight (x) . | 1 . . . . . . . Largest Inventory Capacity 8 | 8 8 8 8 8 5 5 5 Average Capacity 7 | 7 8 8 8 6 5 5 5 Most Carried 8 | 2 8 6 8 8 5 5 5 Average Carried 5 | 1 6 5 7 6 4 4 4 Final Capacity 8 | 8 8 8 8 5 5 5 5 Final Carried 8 | 2 5 6 8 5 5 5 5 Class Distribution -------------------- 100% | Mutant Dominant Class ---------------- Mutant | -10/Materials Mutant | -10/Mines Mutant | -9/Materials Mutant | -8/Materials Mutant | -7/Factory Mutant | -6/Factory Mutant | -6/DSF Resources | -11 -10 -10 -9 -8 -7 -6 -6 ----------- Run | Yrd Mat Min Mat Mat Fac Fac DSF Matter Collected 379 | 199 21 24 13 112 . . 10 Remotely . | . . . . . . . . Salvage Created 239 | . 167 22 13 37 . . . Parts 27 | . 19 5 2 1 . . . Haulers Intercepted . | . . . . . . . . Recyclers Shooed 1 | . . 1 . . . . . Parts Field Recycled . | . . . . . . . . Retrieved Matter . | . . . . . . . . Parts Self-Destructed . | . . . . . . . . Prevented . | . . . . . . . . Kills | -11 -10 -10 -9 -8 -7 -6 -6 ------- Run | Yrd Mat Min Mat Mat Fac Fac DSF Combat Hostiles Destroyed 15 | . 10 2 1 2 . . . Melee 1 | . . . 1 . . . . Guns 2 | . . 2 . . . . . AOE 12 | . 10 . . 2 . . . Classes Destroyed 6 | . 4 . . 2 . . . Worker 1 | . . . . 1 . . . Builder 2 | . 2 . . . . . . Watcher 1 | . 1 . . . . . . Swarmer 6 | . 3 2 1 . . . . Grunt 8 | . 7 . . 1 . . . Duelist 1 | . . . . 1 . . . Best Kill Streak 5 | . 5 2 1 3 . . . Combat Bots Only 5 | . 5 2 1 2 . . . Max Kills in Single Turn 3 | . 3 1 1 3 . . . Gunslinging . | . . . . . . . . Exploded 3 | . 3 . . 2 . . . Melee 1 | . . . 1 . . . . Uniques/NPCs Destroyed . | . . . . . . . . Combat | -11 -10 -10 -9 -8 -7 -6 -6 -------- Run | Yrd Mat Min Mat Mat Fac Fac DSF Hostile Shots Fired 280 | . 46 8 78 57 41 . 50 Missed 82 | . 12 2 26 20 10 . 12 Damage Taken 3210 | . 571 51 481 765 423 . 919 Core 1921 | . 104 9 235 431 278 . 864 Absorbed by Shields 107 | . . . . . 54 . 53 Redirected to Shielding 90 | . . . . 25 65 . . Core Remaining (%) 55 | 100 . 54 41 21 60 . . Volleys Fired 38 | . 14 13 6 5 . . . Largest 2 | . 2 1 1 1 . . . Hottest 50 | . 50 20 20 33 . . . Shots Fired 49 | . 25 13 6 5 . . . Gun 33 | . 12 13 6 2 . . . Cannon . | . . . . . . . . Launcher 16 | . 13 . . 3 . . . Special . | . . . . . . . . Kinetic 33 | . 12 13 6 2 . . . Thermal . | . . . . . . . . Explosive 16 | . 13 . . 3 . . . Electromagnetic . | . . . . . . . . Robot Hit Streak 4 | . 3 2 2 4 . . . Robot Miss Streak 4 | . 2 4 2 . . . . Penetration Max . | . . . . . . . . Secondary Targets . | . . . . . . . . Shots Hit Robots 20 | . 9 4 3 4 . . . Core Hits 32 | . 23 2 1 6 . . . Critical Kills . | . . . . . . . . Critical Parts Destroyed . | . . . . . . . . Critical Strikes . | . . . . . . . . Melee Attacks . | . . . . . . . . Impact . | . . . . . . . . Slashing . | . . . . . . . . Piercing . | . . . . . . . . Sneak Attacks . | . . . . . . . . Combat Hostiles . | . . . . . . . . Follow-up Attacks . | . . . . . . . . Damage Inflicted 1784 | . 1097 44 38 599 . . 6 Guns 151 | . 63 36 36 16 . . . Cannons . | . . . . . . . . Explosions 1616 | . 1034 . . 582 . . . Melee . | . . . . . . . . Ramming 17 | . . 8 2 1 . . 6 Kinetic 151 | . 63 36 36 16 . . . Thermal . | . . . . . . . . Explosive 1616 | . 1034 . . 582 . . . Electromagnetic . | . . . . . . . . Impact . | . . . . . . . . Slashing . | . . . . . . . . Piercing . | . . . . . . . . Highest Corruption . | . . . . . . . . Average Corruption . | . . . . . . . . Corruption Purged . | . . . . . . . . Corruption Blocked . | . . . . . . . . Overload Shots . | . . . . . . . . Overflow Damage 113 | . 30 . . 83 . . . Projectiles . | . . . . . . . . Explosions 113 | . 30 . . 83 . . . Melee . | . . . . . . . . Knockbacks . | . . . . . . . . Impact . | . . . . . . . . Kinetic . | . . . . . . . . Secondary . | . . . . . . . . Self-Inflicted Damage 318 | . 160 3 1 151 . . 3 Shots 9 | . 5 . . 4 . . . Rammed 5 | . . 2 1 1 . . 1 Targets Rammed 5 | . . 2 1 1 . . 1 Kicked . | . . . . . . . . Crushed . | . . . . . . . . Highest Temperature 51 | . 51 4 6 4 . . . Average Temperature 17 | . 23 2 4 4 . . . Received Heat Transfer 631 | . 231 . 60 216 . . 124 Siege Activations . | . . . . . . . . Robots Corrupted . | . . . . . . . . Combat Hostiles . | . . . . . . . . Parts Fried . | . . . . . . . . Impact Corruptions . | . . . . . . . . Robots Melted . | . . . . . . . . Combat Hostiles . | . . . . . . . . Parts Melted . | . . . . . . . . Heat Transferred . | . . . . . . . . Parts Sabotaged . | . . . . . . . . Parts Stolen . | . . . . . . . . Parts Stripped . | . . . . . . . . Power Chain Reactions . | . . . . . . . . Alert | -11 -10 -10 -9 -8 -7 -6 -6 ------- Run | Yrd Mat Min Mat Mat Fac Fac DSF Peak Influence 308 | . 296 111 232 308 126 51 35 Initial 126 | . . 37 42 9 126 51 35 Average 100 | . 107 84 105 151 123 51 26 Maximum Alert Level 1 | . 1 . 1 1 . . . Low Security (%) 79 | 100 64 100 89 62 100 100 100 Level 1 20 | . 35 . 10 37 . . . Level 2 . | . . . . . . . . Level 3 . | . . . . . . . . Level 4 . | . . . . . . . . Level 5 . | . . . . . . . . High Security . | . . . . . . . . Max Security . | . . . . . . . . Squads Dispatched 11 | . 3 . 3 5 . . . Investigation 5 | . 1 . 1 3 . . . Extermination . | . . . . . . . . Reinforcement 6 | . 2 . 2 2 . . . Assault . | . . . . . . . . Garrison . | . . . . . . . . Intercept . | . . . . . . . . Searches Triggered . | . . . . . . . . Construction Impeded 1 | . . . . 1 . . . Haulers Reinforced . | . . . . . . . . Active Scanning Responses . | . . . . . . . . Cargo Convoy Interrupts . | . . . . . . . . Stealth | -11 -10 -10 -9 -8 -7 -6 -6 --------- Run | Yrd Mat Min Mat Mat Fac Fac DSF Distress Signals 2 | . . 1 1 . . . . Communications Jammed . | . . . . . . . . Distress Signals . | . . . . . . . . Times Spotted 60 | . 12 4 21 17 3 . 3 Peak Tracking Total 10 | . 5 3 10 6 3 . 2 Tactical Retreats 6 | . . . 3 2 . . 1 Traps | -11 -10 -10 -9 -8 -7 -6 -6 ------- Run | Yrd Mat Min Mat Mat Fac Fac DSF Traps Triggered 2 | . . . . . . . 2 Indirectly . | . . . . . . . . Trap Hack Attempts . | . . . . . . . . Triggered . | . . . . . . . . Disarmed . | . . . . . . . . Reprogrammed . | . . . . . . . . Reused . | . . . . . . . . Traps Extracted . | . . . . . . . . Installed . | . . . . . . . . Triggered . | . . . . . . . . Machines | -11 -10 -10 -9 -8 -7 -6 -6 ---------- Run | Yrd Mat Min Mat Mat Fac Fac DSF Machines Disabled 5 | . 2 . . 3 . . . Max in Single Turn 2 | . 1 . . 2 . . . Machines Repaired . | . . . . . . . . Machines Dismantled . | . . . . . . . . Machines Sabotaged . | . . . . . . . . Overloaded Fab Kills . | . . . . . . . . Hacking | -11 -10 -10 -9 -8 -7 -6 -6 --------- Run | Yrd Mat Min Mat Mat Fac Fac DSF Machines Accessed 16 | . 3 . 4 6 2 1 . Terminals 16 | . 3 . 4 6 2 1 . Fabricators . | . . . . . . . . Repair Stations . | . . . . . . . . Recycling Units . | . . . . . . . . Scanalyzers . | . . . . . . . . Garrison Access . | . . . . . . . . Total Hacks 40 | . 13 . 9 14 3 1 . Successful 12 | . . . 5 5 1 1 . Failed 28 | . 13 . 4 9 2 . . Catastrophic 10 | . 3 . 2 4 1 . . Database Lockouts . | . . . . . . . . Manual 26 | . 13 . 3 9 1 . . Terminals 40 | . 13 . 9 14 3 1 . Fabricators . | . . . . . . . . Repair Stations . | . . . . . . . . Recycling Units . | . . . . . . . . Scanalyzers . | . . . . . . . . Garrison Access . | . . . . . . . . Terminal Hacks 12 | . . . 5 5 1 1 . Open DSF 2 | . . . . . 1 1 . Alert Level 1 | . . . . 1 . . . Unreport Threat 3 | . . . 3 . . . . Surveillance Status 1 | . . . . 1 . . . Recall Investigation 1 | . . . . 1 . . . Recall Reinforcements 2 | . . . 2 . . . . Zone Layout 2 | . . . . 2 . . . Fabricator Hacks . | . . . . . . . . Repair Station Hacks . | . . . . . . . . Recycling Unit Hacks . | . . . . . . . . Scanalyzer . | . . . . . . . . Garrison Access Hacks . | . . . . . . . . Unauthorized Hacks . | . . . . . . . . Terminals . | . . . . . . . . Fabricators . | . . . . . . . . Repair Stations . | . . . . . . . . Recycling Units . | . . . . . . . . Scanalyzers . | . . . . . . . . Garrison Access . | . . . . . . . . Data Cores Recovered . | . . . . . . . . Used . | . . . . . . . . Hacking Detections 15 | . 3 . 3 6 2 1 . Full Trace Events 6 | . 2 . 1 3 . . . Feedback Events . | . . . . . . . . Feedback Blocked . | . . . . . . . . Robot Schematics Acquired . | . . . . . . . . Robots Built . | . . . . . . . . Authchips . | . . . . . . . . Time . | . . . . . . . . Total Robot Build Rating . | . . . . . . . . Part Schematics Acquired . | . . . . . . . . Parts Built . | . . . . . . . . Authchips . | . . . . . . . . Time . | . . . . . . . . Total Part Build Rating . | . . . . . . . . Parts Repaired . | . . . . . . . . Time . | . . . . . . . . Parts Recycled . | . . . . . . . . Recycled Matter . | . . . . . . . . Retrieved Matter . | . . . . . . . . Retrieved Components . | . . . . . . . . Parts Scanalyzed . | . . . . . . . . Part Schematics Acquired . | . . . . . . . . Parts Damaged . | . . . . . . . . Bothacking | -11 -10 -10 -9 -8 -7 -6 -6 ------------ Run | Yrd Mat Min Mat Mat Fac Fac DSF Used RIF Installer . | . . . . . . . . Robots Hacked . | . . . . . . . . Non-combat . | . . . . . . . . Combat . | . . . . . . . . Robot Hacks Applied . | . . . . . . . . Relay Couplers Released . | . . . . . . . . Fabnet Peak Effective % . | . . . . . . . . Robots Rewired . | . . . . . . . . Allies Hacked . | . . . . . . . . Hacks Repelled . | . . . . . . . . Allies | -11 -10 -10 -9 -8 -7 -6 -6 -------- Run | Yrd Mat Min Mat Mat Fac Fac DSF Total Allies 3 | . . 3 . . . . . Largest Group 3 | . . 3 . . . . . Highest-Rated Group 85 | . . 85 . . . . . Highest-Rated Ally 31 | . . 31 . . . . . Total Orders . | . . . . . . . . Ally Attacks 9 | . . 9 . . . . . Total Damage 170 | . . 170 . . . . . Kills 1 | . . 1 . . . . . Allies Corrupted . | . . . . . . . . Allies Melted . | . . . . . . . . Intel | -11 -10 -10 -9 -8 -7 -6 -6 ------- Run | Yrd Mat Min Mat Mat Fac Fac DSF Robot Analysis Total . | . . . . . . . . Derelict Logs Recovered . | . . . . . . . . Drone Launches . | . . . . . . . . Drone Recoveries . | . . . . . . . . Exploration | -11 -10 -10 -9 -8 -7 -6 -6 ------------- Run | Yrd Mat Min Mat Mat Fac Fac DSF Turns Passed 1475 | 118 402 84 183 376 117 118 77 Spaces Moved 1845 | 73 285 97 388 553 113 288 48 Core 217 | 32 1 . . 20 113 21 30 Treads . | . . . . . . . . Legs 185 | 41 144 . . . . . . Wheels . | . . . . . . . . Hover 325 | . 140 97 . 88 . . . Flight 1118 | . . . 388 445 . 267 18 Fastest Speed 34 | 50 116 56 34 34 50 35 35 Average Speed 63 | 146 119 56 38 46 99 39 75 Slowest Speed 250 | 250 250 56 117 150 100 100 100 Overloaded Moves . | . . . . . . . . Propulsion Burnouts . | . . . . . . . . Robots Hopped 10 | . . . 3 7 . . . Cave-ins Triggered . | . . . . . . . . Exploration Rate (%) 26 | 6 49 13 46 40 4 7 43 Regions Visited 7 Branch Regions 1 Pre-discovered Areas . | . . . . . . . . Known Exits Taken 1 | . . . . . . 1 . Unknown Exits Taken 6 | 1 1 1 1 1 1 . . Scrap Searched . | . . . . . . . . Spaces Dug . | . . . . . . . . Terrain Destroyed 79 | . 48 . . 31 . . . Melee . | . . . . . . . . Projectile . | . . . . . . . . AOE 79 | . 48 . . 31 . . . Terrain Rammed . | . . . . . . . . Walls Destroyed . | . . . . . . . . Machines Disabled . | . . . . . . . . Actions | -11 -10 -10 -9 -8 -7 -6 -6 --------- Run | Yrd Mat Min Mat Mat Fac Fac DSF Total 2096 | 80 324 116 417 662 117 291 89 Wait 116 | . . . 9 91 1 . 15 Move 1818 | 72 284 96 381 538 112 287 48 Hop 10 | . . . 3 7 . . . Pick Up 29 | 1 10 2 6 5 2 2 1 Fast Attach 15 | 6 4 . 1 3 . . 1 Attach 21 | . 5 1 4 8 2 1 . Detach 7 | . 1 1 3 2 . . . Swap 1 | 1 . . . . . . . Drop 14 | . 6 1 3 2 . 1 1 Fire 38 | . 14 13 6 5 . . . Melee . | . . . . . . . . Ram 5 | . . 2 1 1 . . 1 Kick . | . . . . . . . . Crush . | . . . . . . . . Escape Stasis 22 | . . . . . . . 22 Rewire . | . . . . . . . . Trap . | . . . . . . . . Miscellaneous . | . . . . . . . . Route ------- -11/Scrapyard -10/Materials -10/Mines (discovered 2 exits: *Mat x2) -9/Materials -8/Materials -7/Factory -6/Factory -6/DSF History --------- Turn | Location | Event 35 | -11/Scrapyard | Discovered new exit (range 16) 119 | -11/Scrapyard | Entered Materials 312 | -10/Materials | Build established: Mutant 410 | -10/Materials | Discovered new exit (range 6) 521 | -10/Materials | Entered Mines 524 | -10/Mines | Received a Mining Laser from a helpful Derelict 535 | -10/Mines | Lost 6 parts (1p2n1u2w) 536 | -10/Mines | Met a Derelict bent on vengeance 561 | -10/Mines | Discovered new exit (range 7) 572 | -10/Mines | Discovered new exit (range 5) 605 | -10/Mines | Entered Materials 605 | -9/Materials | Evolved 2 slots: Propulsion x2 751 | -9/Materials | Lost 4 parts (1p3n) 753 | -9/Materials | Core integrity fell below 50% 785 | -9/Materials | Discovered new exit (range 10) 788 | -9/Materials | Entered another Materials area 788 | -8/Materials | Evolved 2 slots: Utility x2 1021 | -8/Materials | Lost 5 parts (1p1n3w) 1095 | -8/Materials | Core integrity fell below 50% 1145 | -8/Materials | Discovered new exit (range 15) 1164 | -8/Materials | Entered Factory 1164 | -7/Factory | Evolved 2 slots: Propulsion x1, Utility x1 1187 | -7/Factory | Discovered new exit (range 14) 1194 | -7/Factory | Lost 3 parts (3n) 1281 | -7/Factory | Entered another Factory area 1281 | -6/Factory | Evolved 2 slots: Power x1, Utility x1 1399 | -6/Factory | Identified exit to DSF 1399 | -6/Factory | Entered DSF 1420 | -6/DSF | Additional patrols routed to DSF 1421 | -6/DSF | Core integrity fell below 50% 1462 | -6/DSF | Core integrity fell below 20% 1476 | -6/DSF | Destroyed by H-61 Shepherd with Heavy Assault Cannon Last Messages --------------- Triggered Stasis Trap. A bubble of rippling energy engulfs the area. Field strength at 94. Field strength at 88. Field strength at 82. Penetrated by Slug. Field strength at 65. Field strength at 59. Field strength at 53. Field strength at 36. Field strength at 30. Field strength at 24. Field strength at 18. Slug penetrates Wall. Field strength at 7. Field strength at 1. Stasis field depleted. Penetrated by Slug. Slug penetrates Wall. Penetrated by Slug. Map ----- +----------------------------------------------------+ | ????????????????????????????????????????????????? | | ????????????????????????????????????????????????? | | ????????????????????????????????????????????????? | | ????????????????????????????????????????????????? | | ????????????????????????????????????????????????? | | ????????????????????????????????????????????????? | | ??????######?####??##???????????????????????????? | | ??????#!! #?!!!#?!!#???????????????????????????? | | ??????#!! ##!!!#!!!## ???????????????????????? | | ??????#== ??????????????????????? | | ????###== H ?????????????????????? | | ????#% ! ?????????????????????? | | ????### #?????? ?????????????????????? | | ??????#% ## #?????# #?????????????????????? | | ??????### ###????????# ###???????????????????? | | ???????#! #????????! !!????????????????????? | | ???????#! #????????! !!????????????????????? | | ???????#! #????????! !?????????????????????? | | ???????## ###???????## ###???????????????????? | | ???????#! !!#???????!! !!#???????????????????? | | ???????#! !!#????????! !!#???????????????????? | | ???????## ##########?! !!????????????????????? | | ??????### ### #!!!#?# #?????????????????????? | | ????###"" ## #!!!### ###???????????????????? | | ???#""""" x #???????????????????? | | ???#"##"" ^ @ #???????????????????? | | ??????#"""""##!!#!!!# % !!#???????????????????? | | ??????#"""""######### !!#???????????????????? | | ??????####"##???????####;####???????????????????? | | ?????????#"#???????????# #??????????????????????? | | ?????????""#???????????###??????????????????????? | | ?????????##?????????????????????????????????????? | | ????????????????????????????????????????????????? | | ????????????????????????????????????????????????? | | ????????????????????????????????????????????????? | | ????????????????????????????????????????????????? | | | | | | | | | | | | | | | | | | | | | | | | | | | | | +----------------------------------------------------+ Best States ------------- Heat Dissipation 37 Energy Generation 14 Energy Capacity 250 Matter Stores 229 Matter Capacity 300 Sight Range 16 Terrain Scan Density 10 Additional Mass Support 6 Armor Coverage 150 Utility Shielding 66 Evasion (%) 63 Item Schematics ----------------- None Robot Schematics ------------------ None Fabricated ------------ Nothing Alien Tech Used ----------------- None Achievements -------------- Party Time Challenges ------------ None Game ------ Seed TerrabombDrainedSaw Manual? 0 Play Time 00:23:36 Cumulative 18.9 hours Start 2024.04.15 @ 09:49:06 End 2024.04.15 @ 10:11:17 Sessions 1 Manual Loads 0 Difficulty Rogue Special Mode None Game No. 65 Rogue 65 Adventurer 0 Explorer 0 Win Type - Total 0 Types 0/0/0/0/0/0/0/0/0 Lore% 14 Gallery% 23 Achievement% 21 Wizard Run 0 Options --------- Layout 1 ASCII 1 Keyboard 0 Movement Arrows Keybinds 0 Fullscreen 1 Font 18/SmallcapsGlow Map View 50x40 Zoom Use 0% Tactical HUD 0 Map Filters NONE Filters NONE Steam 1 RUN: a058c450-c23f-4cbc-936d-2d4c2ec92780